bitfinex/quotes_ETHUSD_20250411
["timestamp","ask_amount","ask_price","bid_price","bid_amount"]
[1744394088439,7.09561,1582.1,1581.8,6.32174]
[1744394088735,7.09561,1582.1,1581.7,18.65249233]
[1744394089126,7.09561,1582.1,1581.7,12.33025233]
[1744394089329,6.32009,1582.3,1581.8,6.03461951]
[1744394089514,6.32045,1582.2,1581.9,9.3213]
[1744394089718,12.64007,1582.3,1581.9,6.32135]
[1744394089923,12.64,1582.3,1581.9,12.6427]
[1744394090140,0.8129,1582.5,1581.9,6.32119]
[1744394090141,6.32043,1582.2,1581.9,6.32119]
[1744394090344,6.32043,1582.2,1581.9,8.00880052]
[1744394090526,12.64095,1582.2,1581.9,1.68761052]
[1744394090837,12.64095,1582.2,1581.8,3.0]
[1744394090838,6.32113,1582.0,1581.8,3.0]
[1744394091541,6.32113,1582.0,1581.7,9.32229]
[1744394091841,6.32084,1582.1,1581.8,6.32155]
[1744394092003,12.64179,1582.1,1581.8,6.32155]
[1744394092346,7.13311,1582.2,1581.8,7.69711]
[1744394092501,14.16916,1582.5,1581.9,3.83291961]
[1744394092502,0.8183,1582.4,1581.9,3.83291961]
[1744394092707,7.138,1582.4,1582.0,6.32102]
[1744394093051,7.138,1582.4,1582.1,6.32058]
[1744394093526,7.13805,1582.4,1582.0,6.32103]
[1744394093730,6.31998,1582.3,1582.0,6.32103]
[1744394094242,12.64013,1582.3,1582.0,6.32103]
[1744394094628,6.32031,1582.2,1581.9,6.32137]
[1744394094948,6.32031,1582.2,1581.9,9.28846843]
[1744394095566,6.32031,1582.2,1581.7,0.46583556]
[1744394095765,6.32138,1582.0,1581.7,9.32229]
[1744394096267,6.32233,1581.7,1581.4,0.7529]
[1744394096435,6.32233,1581.7,1581.4,1.2267528]
[1744394096638,6.32233,1581.7,1581.4,11.36840404]
[1744394097964,6.32233,1581.7,1581.4,8.36840404]
[1744394098169,0.7848,1581.8,1581.4,0.75505428]
[1744394098336,6.32283,1581.6,1581.4,3.0]
[1744394098538,6.32231,1581.7,1581.4,9.32349]
[1744394098737,6.32335,1581.5,1581.2,7.13409]
[1744394098937,6.32327,1581.5,1581.2,0.8098]
[1744394099136,6.32353,1581.4,1581.2,0.8098]
[1744394099366,6.32353,1581.4,1581.2,3.8098]
[1744394099548,6.32353,1581.4,1581.2,3.47424742]
[1744394100058,7.09727,1581.5,1581.2,6.3243]
[1744394100463,7.09714,1581.5,1581.2,8.374177]
[1744394100778,6.32373,1581.4,1581.2,2.049987]
[1744394101066,6.32563,1580.9,1580.7,0.7713]
[1744394101271,6.32511,1581.0,1580.5,11.89986428]
[1744394101574,6.32568,1580.9,1580.6,3.48015943]
[1744394102072,6.32604,1580.8,1580.6,3.48015943]
[1744394102371,12.65122,1580.9,1580.6,3.48015943]
[1744394102689,0.7884,1581.1,1580.6,3.48015943]
[1744394102896,13.1849,1581.9,1580.9,4.80159428]
[1744394102897,0.8237,1581.3,1580.9,4.80159428]
[1744394103052,13.47186,1581.3,1580.9,11.19018886]
[1744394103253,6.32446,1581.2,1580.8,7.14735]
[1744394103575,7.14767,1581.3,1580.9,6.38857462]
[1744394103782,6.32293,1581.6,1581.3,6.32372]
[1744394103965,12.6465,1581.5,1581.2,6.32422]
[1744394104284,0.773,1581.6,1581.1,5.60529428]
[1744394104578,6.32194,1581.8,1581.3,12.6475]
[1744394104579,12.64489,1581.7,1581.3,12.6475]
[1744394104765,12.64489,1581.7,1581.3,13.96725]
[1744394105341,6.32239,1581.7,1581.3,13.96725]
[1744394105580,7.1204,1581.8,1581.4,7.10238]
[1744394105743,7.12334,1582.0,1581.6,6.32236]
[1744394105940,6.32151,1581.9,1581.5,4.80159428]
[1744394106247,6.32151,1581.9,1581.5,6.32306]
[1744394106248,6.32203,1581.8,1581.5,6.32306]
[1744394106438,4.22911894,1582.3,1582.0,6.32103]
[1744394106638,4.22911894,1582.3,1581.9,6.32135]
[1744394106639,16.86931894,1582.3,1581.9,6.32135]
[1744394106839,6.32095,1582.1,1581.8,0.772]
[1744394107293,6.32095,1582.1,1581.7,9.32223]
[1744394107702,6.32095,1582.1,1581.7,11.50776216]
[1744394107997,6.32095,1582.1,1581.8,6.32173]
[1744394108352,12.64191,1582.1,1581.7,11.44465643]
[1744394108549,6.32113,1582.0,1581.7,11.44465643]
[1744394108753,6.32113,1582.0,1581.7,5.12242643]
[1744394108986,12.64257,1582.0,1581.7,5.12242643]
[1744394109283,0.7952,1582.2,1581.7,5.12242643]
[1744394109284,0.7952,1582.2,1581.7,2.12242643]
[1744394109464,6.32215,1581.8,1581.6,3.7778]
[1744394109663,6.32215,1581.8,1581.4,0.8001]
[1744394109664,6.32231,1581.7,1581.4,0.8001]
[1744394109852,7.12706,1581.8,1581.4,13.51002813]
[1744394110057,6.32158,1581.9,1581.5,7.67397281]
[1744394110459,6.32158,1581.9,1581.6,6.32252]
[1744394110770,7.12627,1582.0,1581.6,12.70826854]
[1744394110771,13.44753,1582.0,1581.6,12.70826854]
[1744394110968,6.32043,1582.2,1581.8,5.57739428]
[1744394111153,6.32075,1582.1,1581.8,0.7758]
[1744394111355,6.32148,1582.0,1581.6,11.90004428]
[1744394111560,6.32148,1582.0,1581.6,18.22261428]
[1744394111865,6.32075,1582.1,1581.8,6.32189]
[1744394112691,6.32128,1582.0,1581.7,3.0]
[1744394112890,12.64171,1582.1,1581.7,9.38526694]
[1744394113097,13.936645,1582.3,1581.7,3.0]
[1744394113394,12.64323,1581.9,1581.6,0.7758]
[1744394113593,6.32195,1581.8,1581.6,0.7758]
[1744394114090,6.32195,1581.8,1581.5,6.32296]
[1744394114091,6.3224,1581.7,1581.5,3.0]
[1744394114297,6.32391,1581.3,1581.0,6.96388746]
[1744394114598,6.32111,1582.0,1580.8,19.72224428]
[1744394114599,6.32471,1581.1,1580.8,19.72224428]
[1744394114770,6.32471,1581.1,1580.8,15.40600602]
[1744394114963,6.32471,1581.1,1580.8,14.92065]
[1744394115298,7.12992,1581.4,1580.8,3.0]
[1744394115457,6.32521,1581.0,1580.6,0.773]
[1744394115799,13.43043,1581.2,1580.8,12.65142]
[1744394115987,13.43028,1581.2,1580.9,9.32546]
[1744394116186,6.32448,1581.2,1580.9,10.890573]
[1744394116501,6.32281,1581.6,1580.9,10.890573]
[1744394116502,6.32269,1581.7,1581.0,1.3269]
[1744394116707,12.64577,1581.6,1581.3,6.32386]
[1744394117002,6.32311,1581.5,1581.2,6.32418]
[1744394117291,6.32353,1581.4,1581.1,0.55]
[1744394117498,6.32353,1581.4,1581.1,4.11222239]
[1744394117857,6.32287,1581.6,1581.2,6.32419]
[1744394117858,6.32331,1581.5,1581.2,6.32419]
[1744394118059,6.32222,1581.8,1581.4,6.32333]
[1744394118259,6.32222,1581.8,1581.4,12.64668]
[1744394118260,6.32232,1581.7,1581.4,12.64668]
[1744394118484,12.64445,1581.8,1581.5,1.264668]
[1744394118701,6.32178,1581.9,1581.6,6.32269]
[1744394119063,8.5981,1582.1,1581.5,7.587748]
[1744394119264,6.32163,1581.9,1581.6,6.8726]
[1744394119600,6.32213,1581.8,1581.6,0.7654]
[1744394120193,6.32204,1581.8,1581.6,0.7654]
[1744394120496,6.32204,1581.8,1581.5,12.64588]
[1744394120694,12.64325,1581.9,1581.5,12.64588]
[1744394120899,6.3216,1581.9,1581.6,7.587288]
[1744394121098,6.3216,1581.9,1581.6,7.587138]
[1744394121261,6.32119,1582.0,1581.7,6.32211]
[1744394121605,0.7718,1582.3,1581.8,0.8259141]
[1744394121806,50.11,1582.5,1582.0,6.32094]
[1744394122106,12.64054,1582.3,1581.9,6.32135]
[1744394122304,6.32139,1582.0,1581.6,14.63948362]
[1744394122461,6.3206,1582.2,1581.7,3.0]
[1744394122662,6.32164,1581.9,1581.7,3.0]
[1744394122960,0.831,1581.9,1581.5,0.7627]
[1744394123159,6.32191,1581.8,1581.4,6.80318124]
[1744394123359,6.32191,1581.8,1581.3,13.95929428]
[1744394123360,13.47424,1581.9,1581.5,12.64591]
[1744394123563,12.64255,1582.0,1581.6,6.32235]
[1744394123785,6.32165,1581.9,1581.7,3.0]
[1744394123984,6.32165,1581.9,1581.5,6.323]
[1744394123985,6.32191,1581.8,1581.5,6.323]
[1744394124195,6.32191,1581.8,1581.5,3.0]
[1744394124395,12.6441,1581.8,1581.5,3.06322366]
[1744394124599,12.64405,1581.8,1581.5,9.3231]
[1744394124803,6.32191,1581.8,1581.5,9.3231]
[1744394125103,12.64413,1581.8,1581.5,9.32298]
[1744394125311,6.32191,1581.8,1581.5,10.942622]
[1744394125813,6.32238,1581.7,1581.5,1.619642]
[1744394125970,6.32238,1581.7,1581.3,8.6077]
[1744394125971,6.32238,1581.7,1581.4,9.32349]
[1744394126164,6.32199,1581.8,1581.5,6.32308]
[1744394126368,6.32162,1581.9,1581.6,6.32259]
[1744394126568,6.32162,1581.9,1581.6,6.32258]
[1744394126798,6.32162,1581.9,1581.5,6.32299]
[1744394127000,12.64251,1582.0,1581.6,6.954729]
[1744394127198,12.64251,1582.0,1581.7,6.32229]
[1744394127908,6.32032,1582.2,1581.8,6.32168]
[1744394127909,6.32044,1582.2,1581.8,6.32168]
[1744394128202,6.32084,1582.1,1581.8,6.32168]
[1744394128505,6.32041,1582.2,1581.9,6.32148]
[1744394128910,7.14319,1582.3,1582.0,6.32109]
[1744394129217,6.31999,1582.3,1581.9,7.15108]
[1744394129395,6.32174,1581.9,1581.5,7.15248]
[1744394129704,6.32169,1581.9,1581.7,3.0]
[1744394129918,6.3212,1582.0,1581.7,3.0]
[1744394130086,12.64255,1582.0,1581.7,3.0]
[1744394130287,6.3212,1582.0,1581.7,3.0]
[1744394130502,12.64251,1582.0,1581.7,3.0]
[1744394130906,6.32153,1581.9,1581.7,3.0]
[1744394131304,6.32248,1581.7,1581.5,3.8297]
[1744394131504,6.32248,1581.7,1581.5,3.0]
[1744394131710,6.32201,1581.8,1581.4,6.80712187]
[1744394132014,0.8151,1581.9,1581.6,6.32242]
[1744394132211,0.28117121,1581.8,1581.6,7.309662]
[1744394132423,12.64266,1582.0,1581.6,13.632222]
[1744394132579,0.28184965,1581.9,1581.7,6.32228]
[1744394132785,0.28184965,1581.9,1581.7,6.32217]
[1744394133097,0.28184965,1581.9,1581.7,7.10327]
[1744394133433,0.28184965,1581.9,1581.8,0.710327]
[1744394133725,0.28184965,1581.9,1581.8,7.582237]
[1744394134115,0.7557,1582.3,1581.8,0.710327]
[1744394134420,6.32191,1581.8,1581.5,10.09578]
[1744394134627,0.25743054,1581.7,1581.5,16.41876]
[1744394134781,6.57986054,1581.7,1581.5,0.7728]
[1744394134985,6.57986054,1581.7,1581.4,7.844]
[1744394135223,0.25743054,1581.7,1581.2,7.12623]
[1744394135520,6.32289,1581.6,1581.3,15.64767]
[1744394135690,12.64574,1581.6,1581.3,9.32379]
[1744394135888,0.2561979,1581.5,1581.3,9.79825638]
[1744394136114,0.2561979,1581.5,1581.3,16.18528759]
[1744394136298,0.2561979,1581.5,1581.3,16.12205638]
[1744394136509,0.2561979,1581.5,1581.3,17.97529654]
[1744394136716,0.2561979,1581.5,1581.4,6.32351]
[1744394136882,0.2561979,1581.5,1581.3,11.65146654]
[1744394137223,0.25435533,1581.4,1581.3,11.17700016]
[1744394137427,12.64506,1581.7,1581.4,6.3235]
[1744394137581,0.25571281,1581.6,1581.3,17.50078016]
[1744394137780,12.64506,1581.7,1581.3,17.50078016]
[1744394138022,6.57842281,1581.6,1581.3,11.17700016]
[1744394138218,12.90145281,1581.6,1581.3,11.17700016]
[1744394138384,6.57842281,1581.6,1581.3,11.17700016]
[1744394138584,6.57842281,1581.6,1581.3,9.32376]
[1744394138798,6.57842281,1581.6,1581.3,9.78756168]
[1744394139287,0.25571281,1581.6,1581.4,12.70964961]
[1744394139486,0.25571281,1581.6,1581.5,7.10181]
[1744394139729,12.64335,1581.9,1581.6,9.3224]
[1744394139926,6.32231,1581.7,1581.3,6.78760168]
[1744394140136,6.32284,1581.6,1581.4,3.0]
[1744394140431,6.32297,1581.6,1581.4,3.0]
[1744394140589,6.32524,1581.0,1580.8,0.7561]
[1744394140789,6.32535,1581.0,1580.6,13.8821242]
[1744394140994,0.22732126,1580.9,1580.8,3.0]
[1744394141207,0.22732126,1580.9,1580.8,9.32591]
[1744394141452,6.32494,1581.1,1580.8,9.32591]
[1744394141635,0.22732126,1580.9,1580.6,1.2290042]
[1744394141801,6.32471,1581.1,1580.8,6.32591]
[1744394141991,0.22800047,1581.0,1580.8,6.32577]
[1744394142405,0.22800047,1581.0,1580.7,12.65244]
[1744394142693,6.55311047,1581.0,1580.7,12.65239]
[1744394142892,6.55311047,1581.0,1580.7,14.34052942]
[1744394143537,0.22800047,1581.0,1580.9,10.13061]
[1744394143724,7.07795,1581.7,1581.3,6.32378]
[1744394143894,6.32271,1581.6,1581.3,6.32378]
[1744394144204,6.32377,1581.4,1581.2,3.0]
[1744394144397,0.17152053,1581.3,1581.2,3.0]
[1744394144598,6.32391,1581.3,1581.2,3.0]
[1744394144796,0.17152053,1581.3,1581.0,9.32504]
[1744394145098,7.08922,1581.4,1581.0,16.663094]
[1744394145309,0.17084158,1581.2,1581.0,16.663094]
[1744394145515,7.08922,1581.4,1581.1,6.32469]
[1744394146031,6.3232,1581.5,1581.2,6.3243]
[1744394146239,13.44614,1581.8,1581.4,12.64662]
[1744394146408,0.802,1581.8,1581.4,3.0]
[1744394146617,6.32302,1581.6,1581.4,3.0]
[1744394146814,6.32231,1581.7,1581.4,3.0]
[1744394147000,6.32231,1581.7,1581.4,9.3234]
[1744394147200,13.44607,1581.8,1581.4,15.64676]
[1744394147541,12.64489,1581.7,1581.4,4.564676]
[1744394147926,12.64489,1581.7,1581.4,1.564676]
[1744394148538,6.32242,1581.7,1581.4,7.888146]
[1744394148840,7.12401,1581.8,1581.4,7.888046]
[1744394149137,0.802,1581.8,1581.5,6.32296]
[1744394149298,7.12394,1581.8,1581.4,6.32341]
[1744394149701,0.802,1581.8,1581.3,0.55]
[1744394149915,0.802,1581.8,1581.5,6.32278]
[1744394150121,0.802,1581.8,1581.5,6.96138084]
[1744394150636,7.12395,1581.8,1581.5,0.63860084]
[1744394151251,0.1742355,1581.7,1581.5,0.63860084]
[1744394152639,6.32285,1581.6,1581.3,3.0]
[1744394152843,0.17287819,1581.5,1581.3,3.0]
[1744394153149,0.17287819,1581.5,1581.3,9.32385]
[1744394153439,13.446,1581.8,1581.4,6.32351]
[1744394153624,0.1742355,1581.7,1581.4,6.7986141]
[1744394153943,0.1742355,1581.7,1581.5,6.32309]
[1744394154114,0.1742355,1581.7,1581.3,12.64765]
[1744394154433,0.17355688,1581.6,1581.4,3.0]
[1744394154739,6.32281,1581.6,1581.4,3.0]
[1744394154941,0.17287819,1581.5,1581.3,3.0]
[1744394155621,6.97273382,1581.5,1581.1,6.32457]
[1744394155821,0.1721994,1581.4,1581.2,6.32426]
[1744394156017,0.1721994,1581.4,1581.2,12.64843]
[1744394156254,6.32274,1581.6,1581.2,12.64843]
[1744394156472,0.17287819,1581.5,1581.2,6.32417]
[1744394156955,0.17287819,1581.5,1581.2,7.59544879]
[1744394157267,6.32327,1581.5,1581.1,15.64932]
[1744394157426,0.1721994,1581.4,1581.1,6.32466]
[1744394157627,7.2751494,1581.4,1581.0,0.7962]
[1744394157855,6.32392,1581.3,1581.0,3.0]
[1744394158040,0.1701035,1581.2,1581.0,9.32509]
[1744394158241,0.1701035,1581.2,1581.1,6.32471]
[1744394158563,0.8059,1581.6,1581.3,12.64744]
[1744394158725,6.32198,1581.8,1581.5,6.32298]
[1744394158726,0.8059,1581.8,1581.5,6.32298]
[1744394159531,7.12781,1581.8,1581.4,12.6468]
[1744394159764,7.12781,1581.8,1581.4,6.3234]
[1744394159922,7.12781,1581.8,1581.4,12.64674]
[1744394160126,0.8059,1581.8,1581.5,6.32288]
[1744394160327,7.12784,1581.8,1581.5,6.32288]
[1744394160528,0.8059,1581.8,1581.5,12.64587]
[1744394160830,7.12786,1582.0,1581.7,6.32218]
[1744394161026,7.12786,1582.0,1581.6,6.32243]
[1744394161335,6.32234,1581.7,1581.4,6.32335]
[1744394161539,0.15085836,1581.9,1581.4,3.0]
[1744394161741,0.14882278,1581.6,1581.5,6.32285]
[1744394161928,6.32195,1581.8,1581.5,6.32285]
[1744394162128,0.14882278,1581.6,1581.5,6.32285]
[1744394162361,6.32195,1581.8,1581.5,6.32285]
[1744394162524,0.14882278,1581.6,1581.5,6.32285]
[1744394162724,6.32195,1581.8,1581.5,6.32285]
[1744394162961,0.14882278,1581.6,1581.5,6.32285]
[1744394163133,6.32195,1581.8,1581.5,13.91674966]
[1744394163340,0.14882278,1581.6,1581.5,12.6458]
[1744394163530,6.32195,1581.8,1581.5,12.6458]
[1744394163722,0.14882278,1581.6,1581.5,12.6458]
[1744394163922,6.32195,1581.8,1581.5,12.6458]
[1744394164122,0.14882278,1581.6,1581.5,13.11190784]
[1744394164338,7.14775,1582.2,1581.6,3.8008]
[1744394164541,7.14775,1582.2,1581.8,6.32178]
[1744394164734,7.14775,1582.2,1581.8,12.64354]
[1744394164940,0.8273,1582.2,1582.0,6.32109]
[1744394165166,6.31997,1582.3,1582.0,6.32109]
[1744394165967,7.081,1582.4,1582.0,7.962871]
[1744394166264,7.081,1582.4,1582.1,6.32064]
[1744394167159,13.40076,1582.4,1582.0,14.76558845]
[1744394167364,0.7614,1582.4,1582.0,6.32097]
[1744394167736,7.08101,1582.4,1582.0,12.64194]
[1744394168064,6.31837,1582.7,1582.3,6.31969]
[1744394168065,7.08865,1582.6,1582.3,6.31969]
[1744394168433,13.40756,1582.6,1582.3,6.31969]
[1744394168832,7.08865,1582.6,1582.3,6.31969]
[1744394169071,13.40755,1582.6,1582.3,6.31969]
[1744394169241,7.08865,1582.6,1582.3,6.31969]
[1744394169850,0.7698,1582.6,1582.2,3.7945]
[1744394170051,6.31976,1582.4,1582.2,3.0]
[1744394170306,12.64029,1582.3,1582.1,3.0]
[1744394170465,6.32011,1582.3,1582.1,3.0]
[1744394170663,6.32011,1582.3,1582.0,9.79334187]
[1744394170860,12.6402,1582.3,1581.9,12.6428]
[1744394171094,6.32009,1582.3,1581.9,15.07027]
[1744394171294,6.32009,1582.3,1582.0,12.64203]
[1744394171601,0.7698,1582.6,1582.3,6.31989]
[1744394171759,7.08856,1582.6,1582.3,6.31979]
[1744394171966,13.40742,1582.6,1582.2,15.64044]
[1744394172162,7.08856,1582.6,1582.3,6.31981]
[1744394172500,7.08856,1582.6,1582.2,11.44359415]
[1744394172801,7.08856,1582.6,1582.3,6.3197]
[1744394173307,13.40751,1582.6,1582.3,3.0]
[1744394173683,13.40747,1582.6,1582.3,3.0]
[1744394173865,6.31921,1582.5,1582.3,3.0]
[1744394174466,6.31921,1582.5,1582.2,6.32018]
[1744394174661,7.08862,1582.6,1582.2,1.344796]
[1744394174877,7.08862,1582.6,1582.2,9.32023]
[1744394175097,7.08862,1582.6,1582.3,6.3198]
[1744394175310,0.7698,1582.6,1582.2,9.32023]
[1744394175465,6.32005,1582.3,1582.0,0.47657324]
[1744394175797,7.09715,1582.3,1581.9,12.7059774]
[1744394176002,12.63931,1582.4,1582.0,6.32097]
[1744394176202,12.64036,1582.3,1581.9,22.56439927]
[1744394176375,6.31963,1582.4,1582.0,6.32093]
[1744394176575,0.14524584,1582.2,1582.0,6.32093]
[1744394176797,6.31963,1582.4,1582.0,6.32093]
[1744394177106,6.31992,1582.3,1582.0,9.32093]
[1744394177272,6.32093,1582.1,1581.8,7.13993]
[1744394177473,6.32205,1581.8,1581.5,6.323]
[1744394177678,6.46418406,1581.7,1581.4,6.32346]
[1744394177884,6.46418406,1581.7,1581.4,7.588105]
[1744394178082,6.32233,1581.7,1581.4,13.911485]
[1744394178382,0.14037315,1581.6,1581.4,7.588105]
[1744394178692,6.32205,1581.8,1581.4,7.588105]
[1744394178896,0.7966,1582.0,1581.7,6.322]
[1744394179073,7.11788,1582.0,1581.7,6.322]
[1744394179274,0.7966,1582.0,1581.7,6.322]
[1744394179610,0.8087,1582.2,1581.9,6.32132]
[1744394179907,0.8087,1582.2,1581.9,12.70590695]
[1744394180105,7.10164,1582.4,1582.0,6.32104]
[1744394180487,7.10164,1582.4,1582.1,6.3207]
[1744394180488,13.42134,1582.4,1582.1,6.3207]
[1744394180673,6.31994,1582.3,1582.0,12.64195]
[1744394180872,6.32002,1582.3,1582.0,11.53233567]
[1744394181108,6.32002,1582.3,1582.0,3.0]
[1744394181312,6.31952,1582.4,1582.1,6.32052]
[1744394181615,12.63941,1582.4,1582.1,6.32052]
[1744394182113,6.31952,1582.4,1582.1,6.32052]
[1744394182484,6.32018,1582.3,1582.0,9.32102]
[1744394182680,6.32018,1582.3,1581.9,6.32139]
[1744394182908,6.32056,1582.2,1581.9,6.32139]
[1744394183113,7.11242,1582.3,1581.9,6.32139]
[1744394183280,13.43251,1582.3,1582.0,6.32097]
[1744394183681,13.43251,1582.3,1581.9,6.32147]
[1744394183682,6.32042,1582.2,1581.9,6.32147]
[1744394184014,0.7924,1582.3,1581.8,8.61220153]
[1744394184179,0.7924,1582.3,1582.1,6.3206]
[1744394184380,6.31923,1582.5,1582.1,6.3206]
[1744394184381,7.14293,1582.5,1582.1,6.3206]
[1744394184581,6.31953,1582.4,1582.1,12.64119]
[1744394184977,12.63931,1582.4,1582.1,6.32059]
[1744394185198,6.31991,1582.3,1582.0,6.80273397]
[1744394185411,1.263944,1582.3,1581.8,10.1474]
[1744394185622,7.12491,1582.2,1581.9,3.0]
[1744394185925,6.32077,1582.1,1581.8,3.0]
[1744394186284,6.32151,1581.9,1581.8,3.0]
[1744394186488,6.32122,1582.0,1581.8,3.0]
[1744394187022,12.64247,1582.0,1581.8,3.0]
[1744394187327,6.32151,1581.9,1581.6,14.90909]
[1744394187624,0.8046,1581.9,1581.4,68.72968653]
[1744394187795,6.32228,1581.8,1581.4,63.942995]
[1744394188002,12.64458,1581.8,1581.5,3.0]
[1744394188201,12.64458,1581.8,1581.2,4.78660153]
[1744394188202,6.32324,1581.5,1581.2,1.2409594]
[1744394188401,6.32324,1581.5,1581.2,6.32426]
[1744394188602,6.32255,1581.7,1581.4,6.32334]
[1744394188801,6.32233,1581.7,1581.4,6.32339]
[1744394189047,6.32233,1581.7,1581.4,0.707359]
[1744394189331,12.64487,1581.7,1581.4,3.707359]
[1744394189546,12.64487,1581.7,1581.4,10.030859]
[1744394189687,12.64485,1581.7,1581.4,7.030859]
[1744394190027,7.11467,1581.8,1581.3,3.7502]
[1744394190223,7.11467,1581.8,1581.4,11.10999153]
[1744394190224,6.32197,1581.8,1581.4,11.10999153]
[1744394190529,6.32245,1581.7,1581.4,6.32339]
[1744394190687,6.32245,1581.7,1581.4,7.330749]
[1744394190894,6.32197,1581.8,1581.5,6.32289]
[1744394191395,12.64416,1581.8,1581.5,6.32289]
[1744394191597,6.32328,1581.5,1581.1,7.56638902]
[1744394191928,0.1260988,1581.4,1581.1,13.89108902]
[1744394192094,0.1260988,1581.4,1581.2,3.0]
[1744394192291,0.1260988,1581.4,1581.2,9.32428]
[1744394192623,0.1260988,1581.4,1581.3,6.38714793]
[1744394192856,6.32323,1581.5,1581.2,14.11084153]
[1744394193000,0.1260988,1581.4,1581.2,9.32424]
[1744394193201,6.4496388,1581.4,1581.2,4.87583281]
[1744394193402,0.1260988,1581.4,1581.1,0.7673]
[1744394193638,6.32471,1581.1,1581.0,3.0]
[1744394193937,6.44784636,1581.1,1580.8,25.26418153]
[1744394194099,0.12313636,1581.1,1580.8,13.09548459]
[1744394194300,7.1062,1581.4,1581.1,6.32469]
[1744394194500,6.32401,1581.3,1581.0,21.23162153]
[1744394194700,0.1239894,1581.3,1581.1,6.32466]
[1744394195144,0.7825,1581.4,1581.0,8.58140153]
[1744394195303,12.79288453,1581.2,1580.9,7.63496846]
[1744394195503,12.64895,1581.2,1580.9,7.63496846]
[1744394195735,0.14311968,1581.1,1580.9,7.63496846]
[1744394196118,6.32522,1581.0,1580.8,9.07768306]
[1744394196435,6.46793968,1581.1,1580.8,14.63467306]
[1744394196638,0.14195121,1581.0,1580.8,7.826]
[1744394196798,6.32511,1581.0,1580.8,7.826]
[1744394196998,6.32482,1581.1,1580.8,7.826]
[1744394197215,0.14195121,1581.0,1580.8,7.826]
[1744394197438,6.46721121,1581.0,1580.7,4.27642746]
[1744394197645,6.46721121,1581.0,1580.5,0.7907]
[1744394197646,0.92985121,1581.0,1580.5,0.7907]
[1744394197813,6.32615,1580.8,1580.5,0.7907]
[1744394198137,7.11313,1581.0,1580.7,6.3262]
[1744394198329,13.43845,1581.0,1580.7,6.3262]
[1744394198532,13.43845,1581.0,1580.6,17.44000153]
[1744394198727,6.32523,1581.0,1580.7,6.32626]
[1744394199028,0.7714,1581.2,1580.6,13.23625168]
[1744394199029,6.32565,1580.9,1580.6,13.23625168]
[1744394199204,6.32565,1580.9,1580.6,17.43978153]
[1744394199404,6.32476,1581.1,1580.6,0.48231418]
[1744394199626,6.32476,1581.1,1580.5,10.11773]
[1744394199627,6.32614,1580.8,1580.5,16.50796225]
[1744394199903,6.32607,1580.8,1580.5,10.11767]
[1744394200127,6.32631,1580.7,1580.5,3.7907]
[1744394200315,12.65288,1580.7,1580.5,3.0]
[1744394200722,12.65372,1580.6,1580.4,8.30636725]
[1744394201008,6.32671,1580.6,1580.4,8.30636725]
[1744394201444,12.6537,1580.6,1580.4,7.828]
[1744394202017,6.32639,1580.7,1580.4,14.15525]
[1744394202219,7.09681,1580.9,1580.6,6.3267]
[1744394202435,13.42262,1580.9,1580.6,6.3267]
[1744394202606,6.32595,1580.8,1580.5,9.32703]
[1744394202807,6.32595,1580.8,1580.5,11.52119315]
[1744394203103,12.65204,1580.8,1580.5,11.52119315]
[1744394203320,12.65204,1580.8,1580.5,9.32703]
[1744394203622,6.32595,1580.8,1580.5,15.65402]
[1744394203832,6.32595,1580.8,1580.5,15.65398]
[1744394204340,12.65217,1580.8,1580.5,9.32699]
[1744394204504,6.32595,1580.8,1580.5,15.65398]
[1744394204947,6.32595,1580.8,1580.5,9.32699]
[1744394205152,12.65214,1580.8,1580.5,9.32699]
[1744394205450,13.42246,1580.9,1580.6,6.3267]
[1744394205647,7.09676,1580.9,1580.6,6.3267]
[1744394205809,6.32556,1580.9,1580.6,6.3267]
[1744394206010,1.265076,1580.9,1580.5,3.0]
[1744394206211,0.7546,1580.8,1580.4,3.0]
[1744394206410,12.65395,1580.6,1580.4,3.0]
[1744394206650,6.32711,1580.5,1580.3,3.8016]
[1744394206854,6.32819,1580.3,1580.1,0.8238]
[1744394207011,13.289119,1580.3,1580.1,0.05]
[1744394207212,0.632819,1580.3,1580.1,0.05]
[1744394207412,6.32704,1580.6,1580.1,6.37859]
[1744394207413,12.65447,1580.5,1580.1,6.37859]
[1744394207618,6.32721,1580.5,1580.2,6.32829]
[1744394207839,7.154,1580.6,1580.3,6.32779]
[1744394208046,13.48089,1580.6,1580.3,6.32779]
[1744394208368,6.32765,1580.4,1580.1,9.37859]
[1744394208567,12.65552,1580.4,1580.1,3.05]
[1744394208870,6.32793,1580.3,1580.1,3.05]
[1744394209046,6.32793,1580.3,1580.1,0.05]
[1744394209047,6.32831,1580.2,1580.1,0.05]
[1744394209229,7.08563,1580.3,1580.1,0.05]
[1744394209429,11.11217153,1580.9,1580.1,0.05]
[1744394209430,7.08453,1580.6,1580.1,0.90628827]
[1744394209752,6.32717,1580.5,1580.2,6.32804]
[1744394210529,6.32642,1580.7,1580.4,6.3275]
[1744394210734,6.32642,1580.7,1580.4,12.6549]
[1744394210935,13.43395,1580.9,1580.5,6.32681]
[1744394211135,6.32592,1580.8,1580.5,6.32681]
[1744394211334,6.32592,1580.8,1580.5,12.65381]
[1744394211611,7.10828,1580.9,1580.6,6.32669]
[1744394211869,6.32518,1581.0,1580.7,6.32625]
[1744394212049,6.32552,1580.9,1580.6,6.3266]
[1744394212257,12.65123,1580.9,1580.6,6.3266]
[1744394212452,6.32595,1580.8,1580.5,6.32699]
[1744394212971,12.65136,1580.9,1580.5,13.662149]